[Event "Early-Titled-Tuesday-Blitz-May-07-2024"]
[Site "Chess.com"]
[Date "2024.05.07"]
[Round "6"]
[White "SirStrateg"]
[Black "penguingm1"]
[Result "0-1"]
[WhiteElo "2688"]
[BlackElo "2921"]
[TimeControl "180+1"]
[EndTime "9:11:02 PDT"]
[Termination "penguingm1 won by resignation"]

1. d4 {[%clk 0:03:00.9]} 1... d5 {[%clk 0:03:00.1]} 2. Bf4 {[%clk 0:03:00.6]}
2... Nf6 {[%clk 0:02:56.2]} 3. e3 {[%clk 0:03:01.1]} 3... e6 {[%clk 0:02:56.6]}
4. Nf3 {[%clk 0:03:00.4]} 4... Bd6 {[%clk 0:02:56.5]} 5. Bg3 {[%clk 0:03:01]}
5... O-O {[%clk 0:02:55.4]} 6. Nbd2 {[%clk 0:03:00.4]} 6... c5 {[%clk
0:02:55.9]} 7. c3 {[%clk 0:03:00.8]} 7... Qc7 {[%clk 0:02:56]} 8. Bd3 {[%clk
0:03:00.9]} 8... Nbd7 {[%clk 0:02:55.8]} 9. O-O {[%clk 0:02:45.7]} 9... Bxg3
{[%clk 0:02:55.5]} 10. hxg3 {[%clk 0:02:45.5]} 10... b6 {[%clk 0:02:56.2]} 11.
b4 {[%clk 0:02:37.9]} 11... e5 {[%clk 0:02:43.7]} 12. Bb5 {[%clk 0:02:31.2]}
12... e4 {[%clk 0:02:21.5]} 13. Nh2 {[%clk 0:02:23.1]} 13... c4 {[%clk
0:01:29.9]} 14. a4 {[%clk 0:01:17.4]} 14... a6 {[%clk 0:00:49.6]} 15. Bxd7
{[%clk 0:01:17.1]} 15... Bxd7 {[%clk 0:00:50.5]} 16. a5 {[%clk 0:01:17.3]} 16...
b5 {[%clk 0:00:50.2]} 17. f4 {[%clk 0:01:07.1]} 17... exf3 {[%clk 0:00:24.4]}
18. Qxf3 {[%clk 0:01:05.3]} 18... Rae8 {[%clk 0:00:22.6]} 19. Rae1 {[%clk
0:01:01.3]} 19... Ne4 {[%clk 0:00:19]} 20. Nxe4 {[%clk 0:00:58.7]} 20... Rxe4
{[%clk 0:00:19.9]} 21. Qh5 {[%clk 0:00:28.5]} 21... f5 {[%clk 0:00:17]} 22. Rf4
{[%clk 0:00:26.5]} 22... Be8 {[%clk 0:00:13.5]} 23. Qh4 {[%clk 0:00:23]} 23...
h6 {[%clk 0:00:12.6]} 24. Nf3 {[%clk 0:00:19.2]} 24... g5 {[%clk 0:00:10.5]} 25.
Nxg5 {[%clk 0:00:16.8]} 25... hxg5 {[%clk 0:00:11.4]} 26. Qxg5+ {[%clk
0:00:16.5]} 26... Qg7 {[%clk 0:00:11.2]} 27. Qd8 {[%clk 0:00:14.1]} 27... Qxg3
{[%clk 0:00:08.7]} 28. Qxd5+ {[%clk 0:00:10.3]} 28... Bf7 {[%clk 0:00:08.6]} 29.
Qxf5 {[%clk 0:00:09.8]} 29... Qxe1+ {[%clk 0:00:08]} 30. Rf1 {[%clk 0:00:10.4]}
30... Qxe3+ {[%clk 0:00:08.2]} 0-1

[Event "Early-Titled-Tuesday-Blitz-May-07-2024"]
[Site "Chess.com"]
[Date "2024.05.07"]
[Round "6"]
[White "IMGC"]
[Black "Ginger_GM"]
[Result "1-0"]
[WhiteElo "2515"]
[BlackElo "2651"]
[TimeControl "180+1"]
[EndTime "9:11:03 PDT"]
[Termination "IMGC won by resignation"]

1. Nf3 {[%clk 0:03:00.9]} 1... f5 {[%clk 0:02:59]} 2. g3 {[%clk 0:02:59.8]} 2...
Nf6 {[%clk 0:02:58]} 3. Bg2 {[%clk 0:03:00.7]} 3... d6 {[%clk 0:02:57.8]} 4. d4
{[%clk 0:03:00.2]} 4... e6 {[%clk 0:02:57.6]} 5. O-O {[%clk 0:03:00.8]} 5... Be7
{[%clk 0:02:57.8]} 6. b3 {[%clk 0:02:57.3]} 6... O-O {[%clk 0:02:56.6]} 7. Bb2
{[%clk 0:02:57.7]} 7... Ne4 {[%clk 0:02:55.9]} 8. Nbd2 {[%clk 0:02:58.3]} 8...
Bf6 {[%clk 0:02:55.3]} 9. Ne1 {[%clk 0:02:57.6]} 9... Nxd2 {[%clk 0:02:54.2]}
10. Qxd2 {[%clk 0:02:58.5]} 10... Nc6 {[%clk 0:02:53.3]} 11. c4 {[%clk
0:02:53.7]} 11... e5 {[%clk 0:02:52.9]} 12. Bxc6 {[%clk 0:02:53.1]} 12... bxc6
{[%clk 0:02:49.4]} 13. dxe5 {[%clk 0:02:53.1]} 13... dxe5 {[%clk 0:02:49.4]} 14.
Qxd8 {[%clk 0:02:53.1]} 14... Rxd8 {[%clk 0:02:49.1]} 15. Nd3 {[%clk 0:02:53.5]}
15... Re8 {[%clk 0:02:43.5]} 16. f4 {[%clk 0:02:52.3]} 16... exf4 {[%clk
0:02:24.4]} 17. Bxf6 {[%clk 0:02:50.7]} 17... gxf6 {[%clk 0:02:23.4]} 18. Nxf4
{[%clk 0:02:50.5]} 18... a5 {[%clk 0:02:20.3]} 19. Rad1 {[%clk 0:02:43.6]} 19...
a4 {[%clk 0:02:18.2]} 20. Rf3 {[%clk 0:02:44.1]} 20... axb3 {[%clk 0:02:16.6]}
21. axb3 {[%clk 0:02:43.7]} 21... Kf7 {[%clk 0:02:15.9]} 22. Kf2 {[%clk
0:02:44.1]} 22... Ra2 {[%clk 0:02:08.4]} 23. Re3 {[%clk 0:02:40.5]} 23... Rxe3
{[%clk 0:01:59.9]} 24. Kxe3 {[%clk 0:02:40.1]} 24... Ke7 {[%clk 0:02:00.6]} 25.
Kd4 {[%clk 0:02:38.1]} 25... Rb2 {[%clk 0:01:55]} 26. Rd3 {[%clk 0:02:34]} 26...
Bd7 {[%clk 0:01:37.6]} 27. Kc5 {[%clk 0:02:22.1]} 27... Rb1 {[%clk 0:01:35.2]}
28. Nh5 {[%clk 0:02:17.5]} 28... Be8 {[%clk 0:01:32.2]} 29. Re3+ {[%clk
0:02:16.3]} 29... Kf8 {[%clk 0:01:23.2]} 30. Nxf6 {[%clk 0:02:14.9]} 30... Bg6
{[%clk 0:01:23.3]} 31. Nd7+ {[%clk 0:02:10]} 31... Kg7 {[%clk 0:01:21.2]} 32.
Ne5 {[%clk 0:02:08.1]} 32... Rh1 {[%clk 0:01:16.9]} 33. Nf3 {[%clk 0:02:05.2]}
33... f4 {[%clk 0:00:57.5]} 34. gxf4 {[%clk 0:02:04.3]} 34... Kf6 {[%clk
0:00:58.2]} 35. Re5 {[%clk 0:01:47.7]} 35... Rb1 {[%clk 0:00:47.7]} 36. Nd4
{[%clk 0:01:45.1]} 36... Rh1 {[%clk 0:00:47.3]} 37. Nf3 {[%clk 0:01:27.1]} 37...
Rb1 {[%clk 0:00:47]} 38. Kb4 {[%clk 0:01:24.6]} 38... Bc2 {[%clk 0:00:44.6]} 39.
Nd4 {[%clk 0:01:24.2]} 39... Bg6 {[%clk 0:00:42.9]} 40. Re6+ {[%clk 0:01:20.2]}
40... Kg7 {[%clk 0:00:40.6]} 41. Rxc6 {[%clk 0:01:19.5]} 41... Be4 {[%clk
0:00:40.2]} 42. Rxc7+ {[%clk 0:01:19.1]} 42... Kf6 {[%clk 0:00:40.9]} 43. Kc3
{[%clk 0:01:14.1]} 43... h5 {[%clk 0:00:40.3]} 44. Rc5 {[%clk 0:01:08.9]} 44...
Kg6 {[%clk 0:00:37.6]} 45. Rg5+ {[%clk 0:01:09.3]} 45... Kh6 {[%clk 0:00:37.4]}
46. Re5 {[%clk 0:00:55]} 46... Bg2 {[%clk 0:00:30.3]} 47. Nf5+ {[%clk
0:00:54.8]} 47... Kh7 {[%clk 0:00:29.9]} 48. Ng3 {[%clk 0:00:55.3]} 48... h4
{[%clk 0:00:26.7]} 49. Rh5+ {[%clk 0:00:55.8]} 49... Kg6 {[%clk 0:00:26.6]} 50.
Rxh4 {[%clk 0:00:56.4]} 50... Rc1+ {[%clk 0:00:27]} 51. Kd2 {[%clk 0:00:55.5]}
51... Rb1 {[%clk 0:00:26.8]} 52. Kc2 {[%clk 0:00:55.5]} 52... Ra1 {[%clk
0:00:23.7]} 53. Rg4+ {[%clk 0:00:54.9]} 53... Kf7 {[%clk 0:00:22]} 54. Rg5
{[%clk 0:00:55]} 54... Ra2+ {[%clk 0:00:21.4]} 55. Kc3 {[%clk 0:00:55.3]} 1-0

[Event "Early-Titled-Tuesday-Blitz-May-07-2024"]
[Site "Chess.com"]
[Date "2024.05.07"]
[Round "6"]
[White "MarlonJodar"]
[Black "s_stefi"]
[Result "1-0"]
[WhiteElo "2281"]
[BlackElo "1931"]
[TimeControl "180+1"]
[EndTime "9:11:04 PDT"]
[Termination "MarlonJodar won by resignation"]

1. e4 {[%clk 0:03:00.9]} 1... e5 {[%clk 0:02:59.6]} 2. Nf3 {[%clk 0:03:00.8]}
2... Nc6 {[%clk 0:02:59.4]} 3. Bb5 {[%clk 0:03:01]} 3... a6 {[%clk 0:02:58]} 4.
Ba4 {[%clk 0:03:00.5]} 4... Nf6 {[%clk 0:02:57.2]} 5. O-O {[%clk 0:02:59.2]}
5... b5 {[%clk 0:02:56.8]} 6. Bb3 {[%clk 0:02:59.2]} 6... Bc5 {[%clk 0:02:56.4]}
7. c3 {[%clk 0:02:55.2]} 7... d6 {[%clk 0:02:56.3]} 8. a4 {[%clk 0:02:55.5]}
8... Rb8 {[%clk 0:02:53.5]} 9. d4 {[%clk 0:02:55.4]} 9... Bb6 {[%clk 0:02:53]}
10. a5 {[%clk 0:02:55.4]} 10... Ba7 {[%clk 0:02:53.3]} 11. h3 {[%clk 0:02:54.1]}
11... O-O {[%clk 0:02:37.7]} 12. Re1 {[%clk 0:02:54]} 12... h6 {[%clk
0:02:31.2]} 13. Be3 {[%clk 0:02:53.2]} 13... Ne7 {[%clk 0:02:24.7]} 14. Nbd2
{[%clk 0:02:49.3]} 14... Ng6 {[%clk 0:02:23]} 15. dxe5 {[%clk 0:02:28]} 15...
Bxe3 {[%clk 0:02:20.8]} 16. exf6 {[%clk 0:02:04.4]} 16... Bxf2+ {[%clk
0:02:11.5]} 17. Kxf2 {[%clk 0:02:05.3]} 17... Qxf6 {[%clk 0:02:11.3]} 18. Kg1
{[%clk 0:01:53.9]} 18... c5 {[%clk 0:01:58.6]} 19. Qe2 {[%clk 0:01:43.6]} 19...
Nf4 {[%clk 0:01:55.1]} 20. Qf2 {[%clk 0:01:42.6]} 20... Nd3 {[%clk 0:01:54.3]}
21. Qg3 {[%clk 0:01:41.3]} 21... Nxe1 {[%clk 0:01:52.8]} 22. Rxe1 {[%clk
0:01:42.2]} 22... Bb7 {[%clk 0:01:29]} 23. Rf1 {[%clk 0:01:39.9]} 23... Qe7
{[%clk 0:01:14.2]} 24. Nh4 {[%clk 0:00:54]} 24... Kh8 {[%clk 0:00:59.9]} 25. Nf5
{[%clk 0:00:45.8]} 25... Qe5 {[%clk 0:00:49.6]} 26. Qxe5 {[%clk 0:00:44]} 26...
dxe5 {[%clk 0:00:50.5]} 27. Nd6 {[%clk 0:00:44]} 27... c4 {[%clk 0:00:36.8]} 28.
Nxb7 {[%clk 0:00:41.3]} 28... Rxb7 {[%clk 0:00:33.5]} 29. Bc2 {[%clk 0:00:41.8]}
29... Rd7 {[%clk 0:00:32.1]} 30. Nf3 {[%clk 0:00:41.9]} 30... f6 {[%clk
0:00:30.3]} 31. Kf2 {[%clk 0:00:41.3]} 31... Rfd8 {[%clk 0:00:30.1]} 32. Ke3
{[%clk 0:00:41.2]} 32... Kg8 {[%clk 0:00:27.3]} 33. Rf2 {[%clk 0:00:38.5]} 33...
Kf7 {[%clk 0:00:26.5]} 34. Rd2 {[%clk 0:00:38]} 34... Ke6 {[%clk 0:00:24.1]} 35.
Rxd7 {[%clk 0:00:37]} 35... Rxd7 {[%clk 0:00:25]} 36. b3 {[%clk 0:00:33.8]}
36... Rb7 {[%clk 0:00:22.2]} 37. b4 {[%clk 0:00:33.1]} 37... Rd7 {[%clk
0:00:21.6]} 38. Ne1 {[%clk 0:00:32.1]} 38... Rc7 {[%clk 0:00:20.4]} 39. Bd1
{[%clk 0:00:31.4]} 39... Rd7 {[%clk 0:00:20.5]} 40. Bg4+ {[%clk 0:00:31.1]}
40... f5 {[%clk 0:00:13.9]} 41. Bxf5+ {[%clk 0:00:29.9]} 1-0

[Event "Early-Titled-Tuesday-Blitz-May-07-2024"]
[Site "Chess.com"]
[Date "2024.05.07"]
[Round "6"]
[White "m_ezat"]
[Black "KnightDuta"]
[Result "1-0"]
[WhiteElo "2573"]
[BlackElo "2722"]
[TimeControl "180+1"]
[EndTime "9:11:05 PDT"]
[Termination "m_ezat won on time"]

1. d4 {[%clk 0:02:57.6]} 1... Nf6 {[%clk 0:02:59.9]} 2. c4 {[%clk 0:02:56]} 2...
g6 {[%clk 0:03:00.2]} 3. Nc3 {[%clk 0:02:55.8]} 3... d5 {[%clk 0:03:00.8]} 4.
Nf3 {[%clk 0:02:53.5]} 4... Bg7 {[%clk 0:03:01.1]} 5. Bf4 {[%clk 0:02:50.7]}
5... O-O {[%clk 0:03:00.4]} 6. Rc1 {[%clk 0:02:46.1]} 6... c5 {[%clk 0:02:58.5]}
7. dxc5 {[%clk 0:02:40.4]} 7... dxc4 {[%clk 0:02:57.1]} 8. Qxd8 {[%clk
0:02:37.6]} 8... Rxd8 {[%clk 0:02:58]} 9. e3 {[%clk 0:02:37.6]} 9... Na6 {[%clk
0:02:55.8]} 10. c6 {[%clk 0:02:27.9]} 10... bxc6 {[%clk 0:02:56.7]} 11. Bxc4
{[%clk 0:02:27.4]} 11... Nd5 {[%clk 0:02:55.7]} 12. Nxd5 {[%clk 0:02:12.4]}
12... cxd5 {[%clk 0:02:56.6]} 13. Be2 {[%clk 0:02:10.3]} 13... Bxb2 {[%clk
0:02:38.6]} 14. Rb1 {[%clk 0:02:08.3]} 14... Bc3+ {[%clk 0:02:38]} 15. Kf1
{[%clk 0:02:08.4]} 15... Bg7 {[%clk 0:01:39.5]} 16. h3 {[%clk 0:02:04.8]} 16...
Nc5 {[%clk 0:01:26.6]} 17. g4 {[%clk 0:02:03.8]} 17... Ba6 {[%clk 0:01:18.6]}
18. Bxa6 {[%clk 0:02:02.3]} 18... Nxa6 {[%clk 0:01:19.5]} 19. Ke2 {[%clk
0:02:01.8]} 19... Nc5 {[%clk 0:01:19.6]} 20. Rhc1 {[%clk 0:01:58.5]} 20... Ne4
{[%clk 0:01:19.7]} 21. Rb7 {[%clk 0:01:57.8]} 21... Rdc8 {[%clk 0:00:46.5]} 22.
Rxc8+ {[%clk 0:01:47.1]} 22... Rxc8 {[%clk 0:00:47.4]} 23. Rxe7 {[%clk 0:01:47]}
23... Bf6 {[%clk 0:00:32.4]} 24. Rxa7 {[%clk 0:01:32.7]} 24... Rc2+ {[%clk
0:00:31.3]} 25. Kd1 {[%clk 0:01:29]} 25... Rc8 {[%clk 0:00:13.1]} 26. a4 {[%clk
0:01:14.4]} 26... g5 {[%clk 0:00:13.6]} 27. Be5 {[%clk 0:01:12.2]} 27... Nxf2+
{[%clk 0:00:11.8]} 28. Ke2 {[%clk 0:01:09.2]} 28... Rc2+ {[%clk 0:00:11.6]} 29.
Ke1 {[%clk 0:01:02.7]} 29... Bxe5 {[%clk 0:00:05.9]} 30. Nxe5 {[%clk 0:01:02.4]}
30... Nxh3 {[%clk 0:00:06.1]} 31. Nxf7 {[%clk 0:00:56.3]} 31... Ng1 {[%clk
0:00:03.2]} 32. Nxg5 {[%clk 0:00:51.2]} 32... Ra2 {[%clk 0:00:02.3]} 33. a5
{[%clk 0:00:50.5]} 33... Ne2 {[%clk 0:00:01.8]} 34. Nxh7 {[%clk 0:00:49.9]}
34... Nc3 {[%clk 0:00:02.2]} 35. Nf6+ {[%clk 0:00:49]} 35... Kf8 {[%clk
0:00:02.3]} 36. g5 {[%clk 0:00:49.3]} 36... Rg2 {[%clk 0:00:02.4]} 37. a6 {[%clk
0:00:47.2]} 37... Rxg5 {[%clk 0:00:02.2]} 38. Nh7+ {[%clk 0:00:46.8]} 1-0

[Event "Early-Titled-Tuesday-Blitz-May-07-2024"]
[Site "Chess.com"]
[Date "2024.05.07"]
[Round "6"]
[White "Cipy77"]
[Black "djokovic74"]
[Result "1-0"]
[WhiteElo "2609"]
[BlackElo "2806"]
[TimeControl "180+1"]
[EndTime "9:11:09 PDT"]
[Termination "Cipy77 won by resignation"]

1. c4 {[%clk 0:03:00.9]} 1... e6 {[%clk 0:03:00.4]} 2. Nf3 {[%clk 0:03:00.6]}
2... Nf6 {[%clk 0:03:01]} 3. g3 {[%clk 0:02:59.7]} 3... d5 {[%clk 0:03:01.2]} 4.
Bg2 {[%clk 0:02:59.9]} 4... Be7 {[%clk 0:03:01.6]} 5. O-O {[%clk 0:03:00]} 5...
O-O {[%clk 0:03:02.3]} 6. b3 {[%clk 0:03:00.2]} 6... d4 {[%clk 0:03:02.7]} 7. e3
{[%clk 0:02:59.4]} 7... c5 {[%clk 0:03:03.1]} 8. exd4 {[%clk 0:02:59.6]} 8...
cxd4 {[%clk 0:03:04]} 9. d3 {[%clk 0:02:58.4]} 9... Nc6 {[%clk 0:03:04.4]} 10.
Ba3 {[%clk 0:02:58.6]} 10... e5 {[%clk 0:02:54.7]} 11. Re1 {[%clk 0:02:56.4]}
11... Bxa3 {[%clk 0:02:47.1]} 12. Nxa3 {[%clk 0:02:57.3]} 12... Re8 {[%clk
0:02:47.9]} 13. Rc1 {[%clk 0:02:52.8]} 13... Bg4 {[%clk 0:02:23.2]} 14. h3
{[%clk 0:02:43.3]} 14... Bh5 {[%clk 0:02:22]} 15. g4 {[%clk 0:02:37.6]} 15...
Bg6 {[%clk 0:02:21.3]} 16. Nh4 {[%clk 0:02:37.9]} 16... Qa5 {[%clk 0:02:07.5]}
17. Nb5 {[%clk 0:02:35.8]} 17... Rad8 {[%clk 0:02:05.8]} 18. Nxg6 {[%clk
0:02:34.7]} 18... hxg6 {[%clk 0:02:05.1]} 19. b4 {[%clk 0:02:19.9]} 19... Qxb4
{[%clk 0:01:58.1]} 20. Rb1 {[%clk 0:02:19.2]} 20... Qc5 {[%clk 0:01:55.3]} 21.
Qb3 {[%clk 0:02:17.5]} 21... e4 {[%clk 0:01:35.2]} 22. dxe4 {[%clk 0:02:09.4]}
22... a6 {[%clk 0:01:33.1]} 23. Nc7 {[%clk 0:02:06.8]} 23... Na5 {[%clk
0:00:59.1]} 24. Qb6 {[%clk 0:02:03.4]} 24... Qxb6 {[%clk 0:00:59.1]} 25. Rxb6
{[%clk 0:02:04]} 25... Nxc4 {[%clk 0:00:51.1]} 26. Rb4 {[%clk 0:01:45.3]} 26...
b5 {[%clk 0:00:51.4]} 27. Nxe8 {[%clk 0:01:44.5]} 27... Nxe8 {[%clk 0:00:51.8]}
28. a4 {[%clk 0:01:44]} 28... Nc7 {[%clk 0:00:52.3]} 29. axb5 {[%clk 0:01:43.4]}
29... axb5 {[%clk 0:00:53.1]} 30. Bf1 {[%clk 0:01:43.2]} 30... Ne5 {[%clk
0:00:51.2]} 31. Rd1 {[%clk 0:01:39.1]} 31... g5 {[%clk 0:00:48.6]} 32. Kg2
{[%clk 0:01:27.4]} 32... Ne6 {[%clk 0:00:47.6]} 33. Rxb5 {[%clk 0:01:25]} 33...
f6 {[%clk 0:00:47.7]} 34. Ra5 {[%clk 0:01:18.9]} 34... d3 {[%clk 0:00:41.4]} 35.
Kg3 {[%clk 0:01:10]} 35... Nf4 {[%clk 0:00:31.5]} 36. h4 {[%clk 0:01:07.8]}
36... Nc4 {[%clk 0:00:27.5]} 37. Rb5 {[%clk 0:00:51.2]} 37... Ne5 {[%clk
0:00:06.2]} 38. hxg5 {[%clk 0:00:50.9]} 38... Neg6 {[%clk 0:00:05.7]} 39. gxf6
{[%clk 0:00:47.9]} 39... gxf6 {[%clk 0:00:06.6]} 40. Rf5 {[%clk 0:00:46.9]}
40... Ne6 {[%clk 0:00:02.1]} 41. Rxd3 {[%clk 0:00:45.1]} 41... Nef8 {[%clk
0:00:02.9]} 42. Rxd8 {[%clk 0:00:44.6]} 1-0

[Event "Early-Titled-Tuesday-Blitz-May-07-2024"]
[Site "Chess.com"]
[Date "2024.05.07"]
[Round "6"]
[White "vanyakuba"]
[Black "Silent-Killer100"]
[Result "1-0"]
[WhiteElo "2434"]
[BlackElo "2553"]
[TimeControl "180+1"]
[EndTime "9:11:09 PDT"]
[Termination "vanyakuba won by resignation"]

1. e4 {[%clk 0:03:00.9]} 1... c5 {[%clk 0:02:57.7]} 2. c3 {[%clk 0:03:00.9]}
2... d5 {[%clk 0:02:56.4]} 3. exd5 {[%clk 0:03:01.1]} 3... Qxd5 {[%clk
0:02:56.8]} 4. d4 {[%clk 0:03:01.7]} 4... Nf6 {[%clk 0:02:57.2]} 5. Nf3 {[%clk
0:03:00.7]} 5... e6 {[%clk 0:02:56.7]} 6. Bd3 {[%clk 0:02:59.2]} 6... Nc6 {[%clk
0:02:56.5]} 7. O-O {[%clk 0:02:57.1]} 7... Be7 {[%clk 0:02:53.5]} 8. a3 {[%clk
0:02:56.6]} 8... cxd4 {[%clk 0:02:52.4]} 9. cxd4 {[%clk 0:02:57.5]} 9... O-O
{[%clk 0:02:52.4]} 10. Nc3 {[%clk 0:02:58.1]} 10... Qd6 {[%clk 0:02:52.3]} 11.
Re1 {[%clk 0:02:47.3]} 11... b6 {[%clk 0:02:49.1]} 12. Nb5 {[%clk 0:02:20.7]}
12... Qd8 {[%clk 0:02:48.7]} 13. Bf4 {[%clk 0:02:08.7]} 13... Nd5 {[%clk
0:02:44.4]} 14. Bg3 {[%clk 0:02:07.1]} 14... Bb7 {[%clk 0:02:44.1]} 15. Ne5
{[%clk 0:01:24.7]} 15... h6 {[%clk 0:02:32.7]} 16. Rc1 {[%clk 0:01:20.7]} 16...
Nxe5 {[%clk 0:02:21.2]} 17. dxe5 {[%clk 0:01:21.6]} 17... Qd7 {[%clk 0:02:16.3]}
18. Nd6 {[%clk 0:01:09.4]} 18... Bg5 {[%clk 0:02:13.3]} 19. Rc4 {[%clk
0:00:54.3]} 19... Ba6 {[%clk 0:02:07.6]} 20. Rg4 {[%clk 0:00:54.1]} 20... Bxd3
{[%clk 0:02:03.7]} 21. Qxd3 {[%clk 0:00:55]} 21... f5 {[%clk 0:01:38]} 22. exf6
{[%clk 0:00:54.1]} 22... Nxf6 {[%clk 0:01:38.4]} 23. Rd4 {[%clk 0:00:49.7]}
23... Qc6 {[%clk 0:01:25.5]} 24. h4 {[%clk 0:00:44.4]} 24... e5 {[%clk
0:01:03.4]} 25. Bxe5 {[%clk 0:00:35.8]} 25... Nd7 {[%clk 0:00:42.2]} 26. hxg5
{[%clk 0:00:31.4]} 26... Nxe5 {[%clk 0:00:42.3]} 27. Rxe5 {[%clk 0:00:31]} 27...
Qc1+ {[%clk 0:00:42.3]} 28. Kh2 {[%clk 0:00:28.2]} 28... Qxb2 {[%clk 0:00:43.2]}
29. gxh6 {[%clk 0:00:21.1]} 29... Rxf2 {[%clk 0:00:40.8]} 30. Rg5 {[%clk
0:00:18.6]} 30... Rf6 {[%clk 0:00:20.7]} 31. Rxg7+ {[%clk 0:00:18.6]} 31... Kf8
{[%clk 0:00:16.5]} 32. Qe3 {[%clk 0:00:12.6]} 1-0

[Event "Early-Titled-Tuesday-Blitz-May-07-2024"]
[Site "Chess.com"]
[Date "2024.05.07"]
[Round "6"]
[White "Oleksandr_Bortnyk"]
[Black "Aygehovit1992"]
[Result "1-0"]
[WhiteElo "3062"]
[BlackElo "2860"]
[TimeControl "180+1"]
[EndTime "9:11:14 PDT"]
[Termination "Oleksandr_Bortnyk won on time"]

1. e4 {[%clk 0:03:00.9]} 1... c5 {[%clk 0:02:59.8]} 2. Nf3 {[%clk 0:02:59]} 2...
e6 {[%clk 0:02:59.6]} 3. g3 {[%clk 0:02:59.6]} 3... Nc6 {[%clk 0:02:59.3]} 4.
Bg2 {[%clk 0:02:59.9]} 4... Nf6 {[%clk 0:02:59.8]} 5. Nc3 {[%clk 0:02:57.7]}
5... d6 {[%clk 0:02:56.2]} 6. O-O {[%clk 0:02:54.6]} 6... Be7 {[%clk 0:02:56.3]}
7. d3 {[%clk 0:02:53.5]} 7... O-O {[%clk 0:02:55.2]} 8. Ng5 {[%clk 0:02:53.8]}
8... Rb8 {[%clk 0:02:42]} 9. f4 {[%clk 0:02:52.5]} 9... Nd4 {[%clk 0:02:40]} 10.
Be3 {[%clk 0:02:49.6]} 10... b5 {[%clk 0:02:39.5]} 11. g4 {[%clk 0:02:41.2]}
11... b4 {[%clk 0:02:38.6]} 12. Nb1 {[%clk 0:02:41.2]} 12... a5 {[%clk
0:02:31.2]} 13. Nd2 {[%clk 0:02:40.4]} 13... a4 {[%clk 0:02:23.9]} 14. Nh3
{[%clk 0:02:23.8]} 14... Nd7 {[%clk 0:01:56.2]} 15. g5 {[%clk 0:02:21]} 15...
Re8 {[%clk 0:01:46.9]} 16. c3 {[%clk 0:02:19.8]} 16... bxc3 {[%clk 0:01:46.3]}
17. bxc3 {[%clk 0:02:20.7]} 17... Nb5 {[%clk 0:01:46.9]} 18. Rc1 {[%clk
0:02:21]} 18... Bf8 {[%clk 0:01:42.7]} 19. Qxa4 {[%clk 0:02:14.8]} 19... Nc7
{[%clk 0:01:20.5]} 20. Nf2 {[%clk 0:02:08.5]} 20... Ra8 {[%clk 0:01:19.6]} 21.
Qc2 {[%clk 0:02:07]} 21... d5 {[%clk 0:01:15.6]} 22. h4 {[%clk 0:02:00]} 22...
Ra3 {[%clk 0:01:15]} 23. h5 {[%clk 0:01:57.2]} 23... Bb7 {[%clk 0:01:15]} 24.
Ng4 {[%clk 0:01:54.1]} 24... Qa8 {[%clk 0:01:13.7]} 25. Ra1 {[%clk 0:01:31.9]}
25... Nb5 {[%clk 0:01:12.5]} 26. Nb1 {[%clk 0:01:30.7]} 26... d4 {[%clk
0:01:09.9]} 27. Nxa3 {[%clk 0:01:25.9]} 27... Nxa3 {[%clk 0:01:09.3]} 28. Qe2
{[%clk 0:01:24]} 28... dxe3 {[%clk 0:01:09.4]} 29. Nxe3 {[%clk 0:01:18.4]} 29...
c4 {[%clk 0:01:06.4]} 30. Nxc4 {[%clk 0:01:04.3]} 30... Nxc4 {[%clk 0:01:05.9]}
31. dxc4 {[%clk 0:01:05.2]} 31... Nc5 {[%clk 0:00:52.8]} 32. e5 {[%clk
0:01:04.3]} 32... Bxg2 {[%clk 0:00:48.6]} 33. Qxg2 {[%clk 0:01:05.2]} 33... Qa4
{[%clk 0:00:47.9]} 34. Qe2 {[%clk 0:00:58.7]} 34... Qc6 {[%clk 0:00:26.1]} 35.
Rad1 {[%clk 0:00:53.8]} 35... Ne4 {[%clk 0:00:24.3]} 36. Qf3 {[%clk 0:00:53.3]}
36... Ra8 {[%clk 0:00:12.6]} 37. Rd4 {[%clk 0:00:41.2]} 37... Bc5 {[%clk
0:00:09.1]} 38. Re1 {[%clk 0:00:41.8]} 38... Bxd4+ {[%clk 0:00:07.9]} 39. cxd4
{[%clk 0:00:42.7]} 39... Rxa2 {[%clk 0:00:03.1]} 40. Qxe4 {[%clk 0:00:40.4]}
40... Qxc4 {[%clk 0:00:02.9]} 41. Rb1 {[%clk 0:00:34.6]} 41... Rb2 {[%clk
0:00:01.9]} 42. Qa8+ {[%clk 0:00:32.8]} 1-0